[Event "Romanian Rapid Open 2022"]
[Site "Sebes"]
[Date "2022.12.02"]
[Round "6.8"]
[White "Creanga, Robert-Ionut"]
[Black "Filip, Lucian-Ioan"]
[Result "0-1"]
[ECO "E15"]
[WhiteElo "2190"]
[BlackElo "2370"]
[Annotator "TA"]
[PlyCount "154"]
[EventDate "2022.12.02"]
[EventType "rapid"]
[EventCountry "ROU"]
[SourceTitle "playchess.com"]
[Source "ChessBase"]
[SourceQuality "1"]
[TimeControl "600+5"]

{[%evp 12,154,13,14,11,11,14,5,6,4,8,0,0,-6,0,0,0,0,0,0,0,0,0,0,0,0,0,0,0,-19,0,-26,-27,-35,0,0,0,0,0,0,0,-6,-6,-6,0,-14,-21,-14,-14,-24,-6,-7,-6,-7,0,-35,-6,-48,0,0,0,0,0,0,0,-102,-102,-102,-102,-151,-151,-151,-151,-162,-154,-181,-169,-173,0,-404,-91,-91,0,-398,0,-98,-72,-206,-206,-505,-496,-476,-468,-503,-497,-475,-475,-424,-314,-321,-238,-420,-327,-282,-243,-312,-266,-356,-349,-340,-334,-396,-404,-395,-376,-417,-407,-566,-477,-420,-220,-284,-233,-249,-192,-383,-382,-1012,-983,-613,-491,-1340,-864,-29971,-5933,-5089,-2623,-4614,-4400,-29980,-29981,-29985,-29986,-29994,-29995]} 1. d4 {[%emt 0:00:04]} e6 {[%emt 0:00:01]} 2. c4 {[%emt 0:00:12]} Nf6 {[%emt 0:00:07]} 3. Nf3 {[%emt 0:00:42]} b6 {[%emt 0:00:05]} 4. g3 {[%emt 0:00:42]} Bb4+ {[%emt 0:00:35]} 5. Bd2 {[%emt 0:01:26]} Be7 {[%emt 0:00:03]} 6. Bg2 {[%emt 0:00:22]} c6 {[%emt 0:00:25]} 7. Nc3 {[%emt 0:01:09]} d5 {[%emt 0:00:14] Against e4. E15: Queen's Indian: 4 g3 sidelines, 4 g3 Ba6 and 4 g3 Bb7 early deviations.} 8. Ne5 {[%emt 0:00:41]} O-O {[%emt 0:00:51]} 9. O-O {[%emt 0:00:23]} Bb7 {[%emt 0:00:54] The position is equal.} 10. Bg5 {[%emt 0:01:35]} Nbd7 {[%emt 0:00:33]} 11. Nxd7 {[%emt 0:00:34]} Qxd7 {[%emt 0:00:07]} 12. Qb3 {[%emt 0:01:04]} Ba6 {[%emt 0:02:04]} 13. cxd5 {[%emt 0:00:09]} cxd5 {[%emt 0:00:01]} 14. Rfc1 {[%emt 0:00:18] [#]} Rac8 $146 {[%emt 0:00:35]} ({Predecessor:} 14... h6 15. Bd2 Rfc8 16. e3 Bc4 17. Qd1 Rc7 18. a3 Rac8 19. Bf1 Bd6 20. f4 g6 21. b3 Bxf1 22. Qxf1 {0-1 (34) Szucs,S (1882)-Lazar,A (2098) Zalakaros 2004}) 15. e3 {[%emt 0:00:26]} Rc6 {[%emt 0:01:17]} 16. Bxf6 {[%emt 0:01:03]} Bxf6 {[%emt 0:00:01]} 17. Bf1 {[%emt 0:00:16]} Bxf1 {[%emt 0:00:30]} 18. Rxf1 {[%emt 0:00:04]} Rfc8 {[%emt 0:00:09]} 19. h4 {[%emt 0:00:20]} Rc4 {[%emt 0:00:11]} 20. a4 {[%emt 0:00:05]} Be7 {[%emt 0:00:45]} 21. a5 {[%emt 0:00:02]} Rb4 {[%emt 0:00:39]} 22. Qc2 {[%emt 0:00:06]} bxa5 {[%emt 0:00:44]} 23. Rxa5 {[%emt 0:00:01]} Rcb8 {[%emt 0:00:11]} 24. Ra2 {[%emt 0:00:06]} g6 {[%emt 0:00:15]} 25. Rfa1 {[%emt 0:00:03]} R8b7 {[%emt 0:00:03]} 26. Na4 {[%emt 0:00:10]} Rc4 {[%emt 0:00:12]} 27. Qd1 {[%emt 0:00:06]} Bb4 {[%emt 0:00:15]} 28. Rc1 {[%emt 0:00:04]} Rxc1 {[%emt 0:00:25]} 29. Qxc1 {[%emt 0:00:01]} Rc7 {[%emt 0:00:01]} 30. Qd1 {[%emt 0:00:07]} Qb5 {[%emt 0:00:03]} 31. Ra1 {[%emt 0:00:06]} h5 {[%emt 0:00:05]} 32. Qb3 {[%emt 0:00:04]} a6 {[%emt 0:00:05]} 33. Qd1 {[%emt 0:00:13]} Qc4 {[%emt 0:00:06]} 34. b3 {[%emt 0:00:03]} Qb5 {[%emt 0:00:06]} (34... Qc2 $1 $15) 35. Rc1 $11 {[%emt 0:00:01]} Rb7 {[%emt 0:00:09][%cal Bc7b7,Bb7b3,Bb3a3][%mdl 32]} 36. Rc8+ {[%emt 0:00:03]} Kg7 {[%emt 0:00:01]} (36... Kh7 37. Nc5 Rb8 38. Rxb8 Qxb8 39. Nxa6 $14) 37. Qc2 {[%emt 0:00:08]} Bf8 {[%emt 0:00:14]} 38. Rc6 {[%emt 0:00:07]} (38. Ra8 $11 Rb8 39. Rxb8 Qxb8 40. Nc5) 38... Qxb3 $17 {[%emt 0:00:04]} 39. Qxb3 {[%emt 0:00:01]} Rxb3 40. Rxa6 {[%mdl 4096] Endgame KRB-KRN} (40. Kg2 $142) 40... Ra3 {[%emt 0:00:06]} 41. Kg2 {[%emt 0:00:06]} Kf6 {[%emt 0:00:04]} 42. Kf3 {[%emt 0:00:09]} Bb4 {[%emt 0:00:02]} 43. Kg2 {[%emt 0:00:11]} Kf5 {[%emt 0:00:04]} 44. Ra7 {[%emt 0:00:03] [#]} Kf6 {[%emt 0:00:03]} (44... f6 $1 $19 {...Ra2 is the strong threat.} 45. Ra6 e5 46. dxe5 fxe5) 45. Kf3 $2 {[%emt 0:00:02][%mdl 8192]} (45. Ra6 $1 $11) 45... Kg7 $2 {[%emt 0:00:06]} (45... Ra2 $19 {aiming for ...Be1.} 46. g4 Be1 47. gxh5 gxh5) 46. Ra6 {[%emt 0:00:05]} Kf6 {[%emt 0:00:04] Black is more active.} (46... e5 $17 47. Ke2 (47. dxe5 d4 $17) 47... exd4 48. exd4 Kf8) 47. Ra7 $2 {[%emt 0:00:03][%mdl 8192]} (47. Kg2 $11 {and White is okay.}) 47... Kg7 $2 {[%emt 0:00:06]} (47... Ra2 $19 {and Black stays clearly on top.} 48. g4 Be1 49. gxh5 gxh5) 48. Ra6 $1 {[%emt 0:00:01]} Kf8 {[%emt 0:00:09]} 49. Ra7 {[%emt 0:00:04] [#] Now White is beyond hope.} (49. Ra8+ $17 Kg7 50. Kg2) 49... Ra2 $1 $19 {[%emt 0:00:09]} 50. g4 $2 {[%emt 0:00:08]} (50. Ra8+ {was the only chance.} Ke7 51. Nb6 Rxa8 52. Nxa8) 50... Be1 {[%emt 0:00:04]} 51. gxh5 {[%emt 0:00:06]} gxh5 {[%emt 0:00:07]} ({Weaker is} 51... Bxf2 52. hxg6 fxg6 53. Rd7 $11) (51... Rxf2+ $2 52. Kg4 gxh5+ 53. Kxh5 $19) 52. Ra8+ {[%emt 0:00:05]} Kg7 {[%emt 0:00:01]} 53. e4 {[%emt 0:00:10]} Rxf2+ {[%emt 0:00:05]} 54. Ke3 {[%emt 0:00:15]} dxe4 {[%emt 0:00:06] And now ...f5 would win.} 55. Nc5 {[%emt 0:00:00]} Rh2 {[%emt 0:00:08]} 56. Ra7 $2 {[%emt 0:00:00]} (56. Nxe4 Rh3+ 57. Ke2) 56... Kg6 {[%emt 0:00:05]} (56... Bxh4 $2 {too greedy.} 57. Nxe6+ Kf6 58. Nf8 $19) 57. Nxe4 {[%emt 0:00:00]} Rxh4 {[%emt 0:00:02]} (57... Bxh4 $2 {is the wrong capture.} 58. Ra6 $19) 58. Nd6 {[%emt 0:00:00]} f6 {[%emt 0:00:08][%cal Oh4d4]} 59. Ne4 {[%emt 0:00:10]} Rh3+ {[%emt 0:00:07]} 60. Ke2 {[%emt 0:00:03]} Bh4 {[%emt 0:00:02]} 61. Ra6 {[%emt 0:00:02]} Kf5 {[%emt 0:00:02]} 62. Nc5 {[%emt 0:00:02]} e5 {[%emt 0:00:08]} 63. dxe5 {[%emt 0:00:01]} fxe5 {[%emt 0:00:06]} 64. Ra8 {[%emt 0:00:13]} Rh2+ {[%emt 0:00:07]} 65. Kf3 {[%emt 0:00:04]} Rf2+ {[%emt 0:00:05]} 66. Ke3 {[%emt 0:00:01]} Rc2 {[%emt 0:00:06]} 67. Rf8+ {[%emt 0:00:04]} Kg6 {[%emt 0:00:01]} 68. Nd3 $2 {[%emt 0:00:09]} (68. Nd7) 68... Bf6 {[%emt 0:00:06] Hoping for ...h4.} 69. Ke4 $2 {[%emt 0:00:09]} (69. Kf3) 69... Rc4+ {[%emt 0:00:07]} 70. Ke3 {[%emt 0:00:04]} Kf5 {[%emt 0:00:02] White must now prevent ...h4.} 71. Rf7 {[%emt 0:00:14]} (71. Nb2 $142 Re4+ 72. Kf3) 71... h4 {[%emt 0:00:07] Strongly threatening ...h3.} 72. Rh7 {[%emt 0:00:05]} Bg5+ {[%emt 0:00:01]} (72... e4 $142 73. Nf2 Rc3+ 74. Ke2 Rc2+ 75. Kf1 e3 76. Nd3 e2+ 77. Kg1 Bd4+ 78. Kh1 Kg4 79. Re7 Rd2 80. Ne1 Kh3 81. Rf7 Rd1 82. Rf3+ Kg4 83. Kg2 Rxe1 84. Rg3+ Kf4 85. Rf3+ Ke4 86. Rf8 Rg1+ 87. Kh2 e1=Q 88. Re8+ Be5+ 89. Rxe5+ Kxe5 90. Kh3 Qg3#) 73. Ke2 {[%emt 0:00:03]} Rc2+ {[%emt 0:00:04]} 74. Kf1 {[%emt 0:00:02]} e4 {[%emt 0:00:08]} 75. Ne1 {[%emt 0:00:00]} Ra2 {[%emt 0:00:03] Black mates.} 76. Ng2 {[%emt 0:00:03]} Kg4 {[%emt 0:00:03]} 77. Re7 {[%emt 0:00:04]} Bxe7 {[%emt 0:00:01] Weighted Error Value: White=0.46/Black=0.38} 0-1

[Event "Romanian Rapid Open 2022"]
[Site "Sebes"]
[Date "2022.12.02"]
[Round "6.9"]
[White "Matasaru, Stephanie"]
[Black "Cosma, Ioan"]
[Result "0-1"]
[ECO "B48"]
[WhiteElo "1975"]
[BlackElo "2368"]
[Annotator "TA"]
[PlyCount "62"]
[EventDate "2022.12.02"]
[EventType "rapid"]
[EventCountry "ROU"]
[SourceTitle "playchess.com"]
[Source "ChessBase"]
[SourceQuality "1"]
[TimeControl "600+5"]

{[%evp 13,62,0,0,-19,-18,-65,-31,-43,-15,-68,-64,-64,-56,-45,-48,-64,-49,-50,-54,-156,-155,-164,-166,-166,-156,-167,-164,-175,-160,-180,-183,-215,-184,-556,-558,-551,-541,-837,-829,-831,-831,-825,-825,-789,-801,-885,-848,-832,-812,-759,-735]} 1. e4 {[%emt 0:00:01]} c5 {[%emt 0:00:02]} 2. Nf3 {[%emt 0:00:02]} Nc6 {[%emt 0:00:01]} 3. d4 {[%emt 0:00:01]} cxd4 {[%emt 0:00:01]} 4. Nxd4 {[%emt 0:00:01]} Qc7 {[%emt 0:00:05]} 5. Nc3 {[%emt 0:00:05]} e6 {[%emt 0:00:02]} 6. Be3 {[%emt 0:00:21]} a6 {[%emt 0:00:01]} 7. a4 {[%emt 0:00:25] 7.g4 is setting a new trend.} Nf6 {[%emt 0:00:17]} 8. Be2 {[%emt 0:00:04] B48: Sicilian: Taimanov: 5 Nc3 Qc7 6 Be3 a6 without Be2.} Bb4 {[%emt 0:00:08]} 9. Bf3 {[%emt 0:01:37]} (9. Nxc6 $11 {should be considered.} bxc6 10. O-O) 9... Ne5 {[%emt 0:00:13]} 10. O-O {[%emt 0:00:34] [#] Black is slightly better.} O-O $146 {[%emt 0:00:17]} ({Predecessor:} 10... Nc4 11. Bc1 d6 12. Qe2 O-O 13. Na2 Ba5 14. b3 Ne5 15. Bb2 Nxf3+ 16. Nxf3 e5 {0-1 (38) Johansen,S (1961)-Mashinskaya,I (2293) Fagernes 2012}) 11. Nce2 {[%emt 0:00:51]} ({White should play} 11. Bg5 $11) 11... d5 $15 {[%emt 0:00:16] Black is more active.} 12. exd5 {[%emt 0:00:13]} Nxf3+ {[%emt 0:00:05]} 13. Nxf3 {[%emt 0:00:09]} Nxd5 {[%emt 0:00:02]} 14. Bd4 {[%emt 0:00:08]} Rd8 {[%emt 0:00:08]} (14... f6 $5 {[%cal Rb4e7]}) 15. c3 {[%emt 0:00:10]} Bd6 {[%emt 0:00:14]} 16. Qc2 {[%emt 0:00:59] [#] Black keeps a firm grip on the game.} ({Better is} 16. Qb3 $15) 16... e5 $1 $17 {[%emt 0:00:33]} 17. Be3 {[%emt 0:00:03]} Nxe3 {[%emt 0:00:07]} 18. fxe3 {[%emt 0:00:05]} f6 {[%emt 0:00:05] Prevents Ng5.} 19. e4 {[%emt 0:00:34]} Be6 {[%emt 0:00:14]} 20. Ng3 {[%emt 0:00:04]} g6 {[%emt 0:00:08]} 21. Nd2 {[%emt 0:00:45]} Be7 {[%emt 0:00:19]} 22. Rf3 {[%emt 0:01:01]} Rd7 {[%emt 0:00:33]} 23. Rd3 $2 {[%emt 0:00:18]} (23. Ngf1 {is tougher.}) 23... Rxd3 {[%emt 0:00:08] Black is clearly winning.} 24. Qxd3 {[%emt 0:00:02]} Rd8 {[%emt 0:00:19]} 25. Qc2 {[%emt 0:00:09]} Qb6+ {[%emt 0:00:01]} 26. Kh1 {[%emt 0:00:04]} Qf2 {[%emt 0:00:05]} 27. Rd1 {[%emt 0:00:54]} Kg7 {[%emt 0:00:35][%cal Oe6b3] [#] Threatens to win with ...Bb3!} 28. b4 {[%emt 0:00:03]} Bg4 {[%emt 0:00:14]} 29. Ngf1 {[%emt 0:00:30]} Bxd1 {[%emt 0:00:19]} 30. Qxd1 {[%emt 0:00:01]} f5 {[%emt 0:00:44]} 31. exf5 {[%emt 0:00:18]} e4 {[%emt 0:00:11] Weighted Error Value: White=0.56/Black=0.06 (flawless)} 0-1

[Event "Romanian Rapid Open 2022"]
[Site "Sebes"]
[Date "2022.12.02"]
[Round "6.10"]
[White "Filip, Andrei"]
[Black "Jianu, Vlad-Cristian"]
[Result "0-1"]
[ECO "B11"]
[WhiteElo "2331"]
[BlackElo "2516"]
[Annotator "TA"]
[PlyCount "92"]
[EventDate "2022.12.02"]
[EventType "rapid"]
[EventCountry "ROU"]
[SourceTitle "playchess.com"]
[Source "ChessBase"]
[SourceQuality "1"]
[TimeControl "600+5"]

{[%evp 10,91,31,25,33,26,17,29,37,28,16,7,7,8,8,4,9,9,16,-8,27,2,69,66,66,-15,32,0,0,0,0,0,0,-37,-45,-40,-29,-64,-61,-74,-68,-60,-64,-70,-43,-103,-51,-69,-10,-58,-43,-426,-310,-310,-308,-292,-211,-222,-227,-198,-225,-222,-216,-221,-127,-187,-172,-181,-160,-333,-205,-392,-347,-326,-253,-433,-440,-439,-427,-433,-268,-433,-420,-29999]} 1. e4 {[%emt 0:00:02]} c6 {[%emt 0:00:00]} 2. Nf3 {[%emt 0:00:07]} d5 {[%emt 0:00:01]} 3. Nc3 {[%emt 0:00:01]} dxe4 {[%emt 0:00:05]} 4. Nxe4 {[%emt 0:00:05]} Nf6 {[%emt 0:00:01]} 5. Qe2 {[%emt 0:00:05]} Nxe4 {[%emt 0:00:01]} 6. Qxe4 {[%emt 0:00:01]} Nd7 {[%emt 0:00:02] B11: Caro-Kann: Two Knights Variation.} 7. Bc4 {[%emt 0:00:12]} Nf6 {[%emt 0:00:01] [#]} 8. Ne5 $1 {[%emt 0:00:08][%csl Ge5][%cal Rc4f7]} e6 {[%emt 0:00:02] White has an edge.} 9. Qe2 {[%emt 0:00:02]} b5 {[%emt 0:00:01]} 10. Bb3 {[%emt 0:01:30]} (10. Nxc6 Qc7 11. Bd3 (11. Bxb5 a6 $17) 11... a6) 10... Qc7 {[%emt 0:00:05]} 11. d4 {[%emt 0:00:51]} Bd6 {[%emt 0:00:02]} 12. O-O {[%emt 0:00:29]} O-O {[%emt 0:00:04]} 13. c3 {[%emt 0:00:27]} c5 {[%emt 0:00:16]} 14. Bg5 {[%emt 0:00:59] [#]} (14. Qxb5 a5 15. Re1 Ba6 $15) 14... Nd7 $146 {[%emt 0:02:04][%cal Rd7e5]} ({Predecessor:} 14... Nd5 15. Bh4 a5 16. Bg3 Bb7 17. dxc5 Bxe5 18. Bxe5 Qxc5 19. Qg4 g6 20. Rfe1 Qc6 {1-0 (33) Kovalev,V (2648)-Kosteniuk,A (2471) Chess.com INT 2020}) 15. Bf4 {[%emt 0:01:53]} (15. Rfe1 {feels hotter.} Bb7 16. a4 c4 17. Bc2) 15... cxd4 {[%emt 0:02:47]} ({Better is} 15... c4 $11 16. Bc2 Bb7) 16. cxd4 $14 {[%emt 0:00:05][%cal Of1c1]} Qb6 {[%emt 0:00:22]} 17. Bg3 {[%emt 0:00:49]} (17. Rac1 $14) 17... Nf6 {[%emt 0:00:37]} (17... Qxd4 $2 18. Rad1 $18) (17... Nxe5 $11 {deserves consideration.} 18. Bxe5 Bb7) 18. Rac1 {[%emt 0:00:26] And now Rc6 would win.} Bb7 {[%emt 0:00:06] Against Rc6} 19. Rfd1 {[%emt 0:00:24]} Rac8 {[%emt 0:00:52]} 20. Rxc8 {[%emt 0:00:25]} Rxc8 {[%emt 0:00:02]} 21. Bh4 {[%emt 0:00:24]} (21. Nxf7 $5 Bxg3 22. Ng5 (22. Bxe6 Bxf2+ 23. Kh1 Kf8 $11) 22... Bxf2+ 23. Qxf2 $11) 21... Nd5 {[%emt 0:00:43]} 22. Qh5 {[%emt 0:01:05]} Qc7 {[%emt 0:00:13] next ...a5 is good for Black.} (22... Bxe5 {simplifies} 23. dxe5 h6 24. Qg4 Qc5) 23. Bg3 {[%emt 0:00:16]} a5 {[%emt 0:00:25]} 24. a4 {[%emt 0:00:28]} bxa4 {[%emt 0:00:42]} 25. Bxa4 {[%emt 0:00:02]} Nf6 {[%emt 0:00:24]} 26. Qe2 {[%emt 0:00:03]} Bd5 {[%emt 0:00:03]} 27. f3 {[%emt 0:00:40] [#]} (27. Bh4 $15) 27... Qb6 {[%emt 0:00:36]} (27... Nh5 $1 $17 28. Be1 f6) 28. Qd2 {[%emt 0:00:15]} Rb8 {[%emt 0:00:30] Black is more active.} (28... h6 $15) 29. b3 {[%emt 0:00:09]} (29. Rc1 $11 {might be stronger.}) 29... Rc8 $15 {[%emt 0:00:26]} 30. Rc1 $2 {[%emt 0:00:04][%mdl 8192]} (30. Qd3 $15) 30... Rxc1+ {[%emt 0:00:05]} 31. Qxc1 {[%emt 0:00:03]} Qxd4+ {[%emt 0:00:09]} ({Don't do} 31... Bxb3 32. Qc8+ Bf8 {[#]} 33. Nc6 $1 $18) 32. Kh1 {[%emt 0:00:00]} g6 {[%emt 0:00:22]} (32... Bxe5 $2 {gets mated.} 33. Qc8+) 33. Nc6 {[%emt 0:00:02]} Bxc6 $40 {[%mdl 128] Black attacks with force.} 34. Bxc6 {[%emt 0:00:01]} Bxg3 {[%emt 0:00:08]} 35. hxg3 $19 {[%emt 0:00:01][%mdl 4096] Endgame KQB-KQN} Nh5 {[%emt 0:00:06]} 36. Kh2 {[%emt 0:00:10]} Kg7 {[%emt 0:00:13]} (36... Qe5 $19 37. f4 Qc7) 37. Be8 {[%emt 0:00:06]} (37. f4 $17 {keeps fighting.}) 37... Nf6 {[%emt 0:00:14]} 38. Bb5 {[%emt 0:00:14]} h5 {[%emt 0:00:04]} 39. Qg5 $2 {[%emt 0:00:05]} (39. Qc7 $17) 39... Nd5 {[%emt 0:00:11] Strongly threatening ...Ne3.} 40. Be8 $2 {[%emt 0:00:07]} (40. Qc1 {was forced.}) 40... Ne3 {[%emt 0:00:04] White must now prevent ...Qd2.} 41. Qe7 {[%emt 0:00:04]} Qf6 {[%emt 0:00:08]} 42. Qc5 {[%emt 0:00:03]} (42. Qc7) 42... Nf1+ {[%emt 0:00:08]} 43. Kg1 {[%emt 0:00:03]} Nxg3 {[%emt 0:00:02]} 44. Qxa5 {[%emt 0:00:06]} Qd4+ {[%emt 0:00:04]} ({Inferior is} 44... Qb2 45. Qc7 Qb1+ 46. Kh2 Nf1+ 47. Kg1 Ne3+ 48. Kh2 $17) 45. Kh2 {[%emt 0:00:02]} Ne2 {[%emt 0:00:06][%cal Rd4h4]} 46. Qc7 {[%emt 0:00:02]} (46. Qe1 $19 Qe5+ 47. f4 Qxf4+ 48. Kh1) 46... Qh4# {[%emt 0:00:18] Weighted Error Value: White=0.57/Black=0.25 (precise)} 0-1

[Event "Romanian Rapid Open 2022"]
[Site "Sebes"]
[Date "2022.12.02"]
[Round "6.11"]
[White "Costachi, Mihnea"]
[Black "Vrencian, Lehel"]
[Result "1-0"]
[ECO "E60"]
[WhiteElo "2476"]
[BlackElo "2226"]
[Annotator "TA"]
[PlyCount "47"]
[EventDate "2022.12.02"]
[EventType "rapid"]
[EventCountry "ROU"]
[SourceTitle "playchess.com"]
[Source "ChessBase"]
[SourceQuality "1"]
[TimeControl "600+5"]

{[%evp 13,47,-14,-16,-8,0,-24,-22,-61,-29,-26,0,0,0,0,0,0,0,0,-2,-1,-2,-12,-16,-16,-25,-16,-28,-23,0,-12,-9,-11,0,-8,317,303]} 1. d4 {[%emt 0:00:02]} Nf6 {[%emt 0:00:01]} 2. c4 {[%emt 0:00:01]} d6 {[%emt 0:00:03]} 3. Nf3 {[%emt 0:00:09]} g6 {[%emt 0:00:07]} 4. g3 {[%emt 0:00:02]} Bg7 {[%emt 0:00:04]} 5. Bg2 {[%emt 0:00:01]} O-O {[%emt 0:00:02]} 6. O-O {[%emt 0:00:02]} c6 {[%emt 0:00:02]} 7. b3 {[%emt 0:00:07]} e5 $1 {[%emt 0:01:06]} 8. dxe5 {[%emt 0:00:14] E60: King's Indian: Unusual lines and Fianchetto Variation without Nc3.} dxe5 {[%emt 0:00:04][%cal Bd6e5,Be5e4][%mdl 32]} 9. Bb2 {[%emt 0:01:21]} (9. Nxe5 $2 Qxd1 10. Rxd1 Nfd7 $19) 9... e4 {[%emt 0:00:44]} 10. Ng5 {[%emt 0:00:28] The position is equal.} Bf5 {[%emt 0:01:03]} 11. Nc3 $1 {[%emt 0:00:46][%cal Rc3e4] [#]} Qxd1 $146 {[%emt 0:03:54]} ({Predecessor:} 11... h6 12. Qxd8 Rxd8 13. Nh3 Rd2 14. Ba3 Nfd7 15. Rfc1 a5 16. Kf1 Na6 17. Ke1 Rd4 {0-1 (53) Kurka,F (2183)-Mach,P (2265) Czech Republic 2002}) 12. Raxd1 {[%emt 0:00:10][%cal Ob2c1]} Re8 {[%emt 0:00:02]} 13. f3 {[%emt 0:01:01]} exf3 {[%emt 0:00:37]} 14. exf3 {[%emt 0:00:02]} h6 {[%emt 0:00:10]} 15. Nh3 {[%emt 0:00:09]} Na6 {[%emt 0:00:41]} 16. g4 {[%emt 0:00:13]} Bd7 {[%emt 0:00:49]} 17. Na4 {[%emt 0:00:58]} Rad8 {[%emt 0:00:04]} 18. Rd6 {[%emt 0:00:31] Prevents b5.} Be6 {[%emt 0:00:41]} 19. Rfd1 {[%emt 0:00:06]} Rxd6 {[%emt 0:00:07]} 20. Rxd6 {[%emt 0:00:01]} Bf8 {[%emt 0:00:23]} 21. Rd1 {[%emt 0:00:15]} Be7 {[%emt 0:00:02]} 22. Nf4 {[%emt 0:00:09]} Bc8 {[%emt 0:00:01]} 23. Kf1 {[%emt 0:00:23]} Nc5 $2 {[%emt 0:00:19][%mdl 8192] [#]} (23... b5 $11 {and Black is okay.} 24. Re1 Kf8 25. cxb5 cxb5) 24. Nxc5 {[%emt 0:00:11] Weighted Error Value: White=0.07 (flawless) /Black=0.35} 1-0